bitfinex-derivatives/quotes_ETHF0:USTF0_20250602
["timestamp","ask_amount","ask_price","bid_price","bid_amount"]
[1748907911622,0.7647,2614.1,2613.8,2.6966]
[1748907911920,1.44378,2614.2,2613.8,2.6966]
[1748907912323,0.76471,2614.1,2613.8,2.6966]
[1748907912517,19.42671,2614.1,2613.8,2.6966]
[1748907912823,23.85671,2614.1,2613.8,2.6966]
[1748907913220,23.092,2614.1,2613.8,2.6966]
[1748907913520,4.43,2614.6,2614.0,3.2078]
[1748907913816,5.19456,2614.6,2614.1,4.9145]
[1748907914022,4.43,2614.6,2614.2,2.4541]
[1748907914414,0.01064422,2614.4,2614.2,2.4541]
[1748907914812,3.2078,2614.7,2614.2,2.4541]
[1748907915012,4.43,2615.2,2614.6,3.2078]
[1748907915221,0.76449,2614.8,2614.7,2.6656]
[1748907916318,18.66059,2614.8,2614.7,2.6656]
[1748907916522,19.42508,2614.8,2614.7,2.6656]
[1748907917021,19.42508,2614.8,2614.6,3.213538]
[1748907917022,0.76452,2614.7,2614.6,3.213538]
[1748907917325,5.19052,2614.7,2614.6,3.213538]
[1748907917514,5.19052,2614.7,2614.6,0.005738]
[1748907917721,4.42562,2614.7,2614.6,3.213538]
[1748907917922,5.19014,2614.7,2614.6,3.213538]
[1748907918219,0.76452,2614.7,2614.6,3.213538]
[1748907918419,0.76449,2614.9,2614.6,3.213538]
[1748907918616,5.19049,2614.8,2614.7,2.6005]
[1748907918815,0.76452,2614.7,2614.6,0.005738]
[1748907919017,2.6061,2614.7,2614.6,0.005738]
[1748907919217,0.76452,2614.8,2614.6,0.005738]
[1748907919526,4.42562,2614.7,2614.6,0.005738]
[1748907919822,5.19052,2614.7,2614.6,0.005738]
[1748907920015,0.76452,2614.7,2614.6,0.005738]
[1748907920231,7.63877702,2615.2,2614.6,3.213538]
[1748907920423,0.76451,2614.8,2614.7,2.6005]
[1748907920828,0.76451,2614.8,2614.7,2.67119789]
[1748907921027,2.64221,2615.1,2614.7,2.67119789]
[1748907921233,0.76451,2614.8,2614.7,2.67119789]
[1748907925430,0.76451,2614.8,2614.7,0.07069789]
[1748907925625,0.76452,2614.7,2614.6,3.213538]
[1748907925831,5.20522727,2614.7,2614.6,3.213538]
[1748907926036,0.77922727,2614.7,2614.6,3.213538]
[1748907926235,23.85922727,2614.7,2614.6,3.213538]
[1748907927633,21.94704727,2614.7,2614.6,3.213538]
[1748907928340,21.94704727,2614.7,2614.6,0.005738]
[1748907928735,0.7647,2614.1,2614.0,3.2078]
[1748907929038,5.1907,2614.1,2614.0,3.2078]
[1748907929244,2.6039,2614.6,2614.0,3.2078]
[1748907929446,4.426,2614.5,2614.1,7.7052]
[1748907929746,0.76464,2614.3,2614.2,2.6843]
[1748907930139,2.51304,2614.5,2614.2,2.6843]
[1748907930844,0.76464,2614.3,2614.2,2.6843]
[1748907931540,17.887,2614.3,2614.2,2.6843]
[1748907931836,18.65164,2614.3,2614.2,2.6843]
[1748907932046,2.609638,2614.6,2614.2,2.6843]
[1748907932233,23.8426,2614.5,2614.3,3.2078]
[1748907932438,23.8426,2614.5,2614.4,2.6843]
[1748907932641,5.1906,2614.5,2614.4,2.6843]
[1748907932844,23.8426,2614.5,2614.4,2.6843]
[1748907933041,21.165,2614.5,2614.4,2.6843]
[1748907933341,0.7646,2614.5,2614.4,2.6843]
[1748907933540,23.078,2614.5,2614.4,2.6843]
[1748907934842,21.93018,2614.5,2614.4,2.6843]
[1748907935036,21.16518,2614.5,2614.4,2.6843]
[1748907935435,5.19058,2614.5,2614.4,2.6843]
[1748907936346,0.76461,2614.4,2614.3,3.2078]
[1748907936549,0.76461,2614.4,2614.2,0.07069789]
[1748907936550,3.2078,2614.4,2614.2,0.07069789]
[1748907936746,0.7647,2614.1,2614.0,0.005738]
[1748907937450,3.2078,2614.1,2613.5,3.2078]
[1748907937648,0.76484,2613.7,2613.5,3.2078]
[1748907937946,3.27827,2614.0,2613.5,3.2078]
[1748907938142,0.76484,2613.6,2613.5,3.2078]
[1748907938343,3.27827,2614.0,2613.3,5.2738]
[1748907938652,0.76487,2613.6,2613.4,0.005738]
[1748907938853,0.76483,2613.7,2613.4,0.005738]
[1748907939247,2.1302,2614.0,2613.4,0.005738]
[1748907939550,0.76487,2613.5,2613.4,0.005738]
[1748907939846,5.19087,2613.5,2613.4,2.738838]
[1748907940957,4.04294,2613.5,2613.4,2.738838]
[1748907941254,3.27764,2613.5,2613.4,2.738838]
[1748907941751,0.76485,2613.6,2613.4,2.738838]
[1748907941952,23.077,2613.7,2613.4,2.738838]
[1748907942147,23.84182,2613.7,2613.4,2.738838]
[1748907942348,4.426,2613.7,2613.4,5.946638]
[1748907942547,4.426,2613.7,2613.5,0.76487]
[1748907942749,4.426,2613.7,2613.6,3.33294]
[1748907942945,4.426,2614.3,2613.6,2.5681]
[1748907943154,2.51255,2614.3,2614.2,0.07069789]
[1748907943552,3.27719,2614.3,2614.2,0.07069789]
[1748907945155,21.92619,2614.3,2614.2,0.07069789]
[1748907945457,6.2488429,2614.4,2614.2,0.07069789]
[1748907945759,3.8056329,2614.5,2614.3,2.6459]
[1748907945960,3.8056329,2614.5,2614.3,5.286]
[1748907946754,21.926828,2614.6,2614.3,5.286]
[1748907946954,21.161828,2614.6,2614.3,5.286]
[1748907947460,0.76461,2614.4,2614.3,2.6459]
[1748907948262,19.41261,2614.4,2614.3,2.6459]
[1748907948562,0.76464,2614.3,2614.2,0.07069789]
[1748907948759,2.80244,2614.3,2614.2,0.07069789]
[1748907948961,3.56708,2614.3,2614.2,0.07069789]
[1748907949358,0.76473,2614.0,2613.9,2.6227]
[1748907949559,5.18473,2614.0,2613.9,2.6227]
[1748907950152,0.76473,2614.0,2613.9,2.6227]
[1748907950657,3.0407729,2614.3,2613.9,2.6227]
[1748907950854,0.76469,2614.2,2614.0,2.7912]
[1748907951059,0.76469,2614.2,2614.1,2.6411]
[1748907951260,19.41165,2614.3,2614.1,2.6411]
[1748907951656,19.41165,2614.3,2614.2,2.5558]
[1748907951854,4.42,2614.3,2614.2,2.5558]
[1748907952066,23.066,2614.3,2614.2,2.5558]
[1748907952364,21.15333,2614.3,2614.2,2.5558]
[1748907953166,20.3887,2614.3,2614.2,2.5558]
[1748907954264,0.005738,2614.6,2614.3,0.07069789]
[1748907954463,0.005738,2614.6,2614.4,2.7015]
[1748907954869,0.005738,2614.6,2614.5,2.7288]
[1748907955263,0.770288,2614.6,2614.5,2.7288]
[1748907955764,0.76458,2614.5,2614.4,2.7015]
[1748907955969,3.835118,2614.6,2614.4,2.7015]
[1748907956165,0.76458,2614.5,2614.4,2.7015]
[1748907958068,0.76461,2614.4,2614.3,0.07069789]
[1748907958368,0.76469,2614.1,2614.0,2.6173]
[1748907958568,5.18469,2614.1,2614.0,2.6173]
[1748907958873,0.76469,2614.1,2614.0,2.6173]
[1748907959064,23.82669,2614.1,2614.0,2.6173]
[1748907959265,23.062,2614.1,2614.0,2.6173]
[1748907959571,23.82669,2614.1,2614.0,2.6173]
[1748907959869,0.76481,2613.7,2613.6,5.3436]
[1748907960370,23.06136,2614.1,2613.9,0.07069789]
[1748907960565,7.02424257,2614.0,2613.9,0.07069789]
[1748907960768,7.44472,2614.0,2613.9,0.07069789]
[1748907960971,8.23620628,2614.0,2613.9,0.07069789]
[1748907961167,5.18472,2614.0,2613.9,0.07069789]
[1748907961366,7.47136989,2614.0,2613.7,2.5385]
[1748907961570,0.76476,2613.9,2613.7,2.5385]
[1748907962067,5.55866989,2614.0,2613.7,2.5385]
[1748907962274,4.42,2614.0,2613.8,5.9015]
[1748907962478,4.42,2614.0,2613.9,5.2151]
[1748907963375,5.18472,2614.0,2613.9,5.2151]
[1748907963569,3.27192,2614.0,2613.9,5.2151]
[1748907963774,1.7421,2614.0,2613.9,5.2151]
[1748907965081,3.2078,2614.5,2613.9,5.2151]
[1748907965274,2.5072,2614.4,2613.9,5.2151]
[1748907965479,0.7647,2614.1,2613.9,5.2151]
[1748907966475,0.76468,2614.2,2613.9,5.2151]
[1748907967374,0.75918,2614.2,2613.9,5.2151]
[1748907967679,0.75918,2614.2,2614.0,3.2078]
[1748907967878,0.75918,2614.2,2614.1,2.4997]
[1748907968275,2.50138,2614.4,2614.1,2.4997]
[1748907968584,0.76467,2614.2,2614.1,2.4997]
[1748907968879,3.97247,2614.2,2614.1,2.4997]
[1748907969072,0.76467,2614.2,2614.1,2.4997]
[1748907969277,23.82267,2614.2,2614.1,2.12662587]
[1748907970076,0.76475,2613.9,2613.8,2.6937]
[1748907971673,24.46765,2614.2,2613.8,2.6937]
[1748907971983,23.70265,2614.2,2613.8,2.6937]
[1748907972183,0.76475,2613.9,2613.8,2.6937]
[1748907972478,3.05445995,2614.0,2613.8,2.6937]
[1748907972674,21.69045995,2614.1,2613.8,5.2104]
[1748907972875,22.45514995,2614.1,2613.8,5.2104]
[1748907973083,20.54260995,2614.1,2613.8,5.2104]
[1748907973380,0.76475,2613.9,2613.8,5.2104]
[1748907973578,3.05410995,2614.0,2613.8,5.2104]
[1748907973777,0.76475,2613.9,2613.8,5.2104]
[1748907974976,23.05465,2613.9,2613.8,2.5167]
[1748907975889,22.2899,2613.9,2613.5,5.3667]
[1748907976185,0.76484,2613.6,2613.5,7.948]
[1748907976378,26.1833,2613.9,2613.5,7.948]
[1748907976581,23.044,2613.9,2613.5,7.948]
[1748907976782,0.7648,2613.8,2613.7,0.07069789]
[1748907977480,0.76481,2613.8,2613.7,0.07069789]
[1748907977871,3.35121,2613.8,2613.7,0.07069789]
[1748907978887,4.65931,2613.8,2613.7,0.07069789]
[1748907979885,0.76484,2613.6,2613.5,2.5813]
[1748907980685,0.76484,2613.6,2613.5,2.65199789]
[1748907984080,0.76484,2613.6,2613.5,0.07069789]
[1748907985983,0.76484,2613.6,2613.2,2.5688]
[1748907985984,0.76493,2613.3,2613.2,2.5688]
[1748907986190,8.38473,2613.3,2613.2,2.5688]
[1748907987884,0.76499,2613.1,2613.0,0.005738]
[1748907988080,19.39399,2613.1,2613.0,0.005738]
[1748907988887,0.76515,2612.6,2612.4,3.2078]
[1748907989089,4.412,2612.7,2612.5,5.2143]
[1748907989592,3.2078,2613.0,2612.5,5.2143]
[1748907989791,3.1861,2613.0,2612.5,5.220038]
[1748907989991,3.1861,2613.0,2612.5,10.985188]
[1748907990289,3.1861,2613.0,2612.5,5.985188]
[1748907990492,0.76499,2613.1,2612.7,3.2078]
[1748907990688,4.412,2613.2,2612.7,3.2078]
[1748907990895,4.41186,2613.2,2612.7,3.2078]
[1748907991096,4.41186,2613.2,2612.8,2.5991]
[1748907991284,0.75703,2613.0,2612.8,2.5991]
[1748907992100,4.41186,2613.2,2612.8,2.5991]
[1748907992101,0.76505,2612.9,2612.8,2.5991]
[1748907992297,7.27556,2613.2,2612.8,2.5991]
[1748907992492,0.765,2613.1,2612.8,2.5991]
[1748907992692,0.76503,2613.0,2612.8,2.5991]
[1748907992901,0.76505,2612.9,2612.8,2.5991]
[1748907993208,3.64646,2613.2,2612.8,2.5991]
[1748907993402,0.76501,2613.1,2612.8,2.5991]
[1748907993700,0.76505,2612.9,2612.8,2.5991]
[1748907994306,3.81632859,2613.3,2612.8,2.5991]
[1748907994503,23.80297,2613.2,2612.9,3.2078]
[1748907994702,0.76499,2613.1,2613.0,2.8426]
[1748907995003,23.038,2613.1,2613.0,5.6048]
[1748907995805,23.80299,2613.1,2613.0,5.6048]
[1748907996004,23.03769,2613.1,2613.0,5.6048]
[1748907997095,0.76505,2612.9,2612.8,0.07069789]
[1748907997499,4.19525,2613.0,2612.8,0.07069789]
[1748907997802,0.76505,2612.9,2612.8,0.07069789]
[1748907998709,4.1949,2613.0,2612.8,0.07069789]
[1748907999213,19.38905,2612.9,2612.8,0.07069789]
[1748907999508,19.34025,2612.9,2612.8,0.07069789]
[1748908000505,19.11075,2612.9,2612.8,0.07069789]
[1748908001308,19.09525,2612.9,2612.8,0.07069789]
[1748908001514,19.09525,2612.9,2612.5,0.005738]
[1748908001515,26.8318,2612.9,2612.5,0.005738]
[1748908001811,3.2078,2612.6,2611.9,3.2078]
[1748908002004,0.76522,2612.3,2612.0,2.7367]
[1748908002306,0.76526,2612.2,2612.0,2.7367]
[1748908003011,0.76524,2612.3,2612.2,0.07069789]
[1748908003809,0.76523,2612.3,2612.2,0.07069789]
[1748908004010,0.76528,2612.1,2612.0,2.7367]
[1748908005406,17.47406,2612.1,2612.0,2.7367]
[1748908005616,16.70878,2612.1,2612.0,2.7367]
[1748908006305,17.47406,2612.1,2612.0,2.7367]
[1748908006708,16.70836,2612.1,2612.0,2.7367]
[1748908007015,14.79416,2612.1,2612.0,2.7367]
[1748908008516,0.76528,2612.1,2612.0,2.7367]
[1748908008816,19.38728,2612.1,2612.0,2.7367]
[1748908009912,17.47318,2612.1,2612.0,2.7367]
[1748908010212,17.47276,2612.1,2612.0,2.7367]
[1748908013410,0.005738,2612.3,2612.0,2.7367]
[1748908013713,0.005738,2612.3,2612.2,3.97305]
[1748908013910,5.1661,2612.8,2612.2,3.97303]
[1748908014109,5.1661,2612.8,2612.5,3.2078]
[1748908014314,19.38412,2612.7,2612.6,5.3212]
[1748908014612,19.38412,2612.7,2612.5,3.2078]
[1748908014613,0.76513,2612.6,2612.5,3.2078]
[1748908014810,0.76518,2612.5,2612.2,8.529]
[1748908015312,16.70468,2612.7,2612.2,8.529]
[1748908015810,0.76519,2612.4,2612.2,8.529]
[1748908016213,0.76522,2612.3,2612.2,8.529]
[1748908016919,0.76522,2612.3,2612.2,5.3212]
[1748908017122,4.401,2612.3,2611.9,3.2078]
[1748908017420,0.7653,2612.1,2612.0,2.5896]
[1748908020121,0.76528,2612.1,2612.0,2.5896]
[1748908020420,0.76526,2612.2,2612.0,2.5896]
[1748908020718,2.7485,2612.4,2612.0,2.5896]
[1748908020719,23.016,2612.1,2612.0,2.5896]
[1748908021015,23.78128,2612.1,2612.0,2.5896]
[1748908021617,21.10148,2612.1,2612.0,2.5896]
[1748908021818,1.91328,2612.0,2611.3,3.2078]
[1748908022017,8.72605085,2612.0,2611.4,2.9348]
[1748908022314,8.72605085,2612.0,2611.4,5.8773]
[1748908022315,21.8208,2611.9,2611.4,5.8773]
[1748908022515,0.76546,2611.5,2611.4,5.8773]
[1748908022717,5.16746,2611.5,2611.4,5.8773]
[1748908022924,5.16746,2611.5,2611.4,2.9425]
[1748908024417,3.04725085,2611.8,2611.4,2.9425]
[1748908024723,4.402,2611.7,2611.4,2.9425]
[1748908026118,0.76546,2611.5,2611.4,2.9425]
[1748908026427,8.03091,2611.7,2611.4,2.9425]
[1748908026617,0.76538,2611.8,2611.4,2.9425]
[1748908026925,22.2483,2611.7,2611.4,2.9425]
[1748908027222,23.0137,2611.7,2611.4,2.9425]
[1748908027426,22.2483,2611.7,2611.4,2.9425]
[1748908027620,0.76546,2611.5,2611.4,2.9425]
[1748908029223,0.76545,2611.6,2611.4,2.9425]
[1748908030218,18.61,2611.5,2611.4,2.9425]
[1748908030721,2.28145085,2612.1,2611.4,7.9425]
[1748908030922,26.05875085,2612.1,2611.7,3.2078]
[1748908031115,6.68345085,2612.1,2611.8,8.2599]
[1748908031519,6.68345085,2612.1,2611.9,0.76532]
[1748908031724,6.68345085,2612.1,2612.0,6.73321]
[1748908032121,4.76915085,2612.1,2612.0,5.9679]
[1748908032524,0.36715085,2612.1,2612.0,5.9679]
[1748908033222,4.00345085,2612.4,2612.0,5.9679]
[1748908033420,4.76865085,2612.4,2612.0,5.9679]
[1748908033723,23.780828,2612.8,2612.3,3.2078]
[1748908033914,0.005738,2612.8,2612.4,8.4299]
[1748908034228,0.76515,2612.6,2612.4,8.4299]
[1748908034419,0.76516,2612.5,2612.4,8.4299]
[1748908034911,0.76513,2612.6,2612.4,8.4299]
[1748908035826,21.106236,2612.8,2612.4,8.4299]
[1748908035827,19.957666,2612.8,2612.4,8.4299]
[1748908036029,0.76516,2612.5,2612.4,8.4299]
[1748908036221,19.957326,2612.8,2612.4,8.4299]
[1748908036421,0.76515,2612.6,2612.4,8.4299]
[1748908036727,0.76512,2612.7,2612.4,8.4299]
[1748908036923,20.722426,2612.8,2612.4,8.4299]
[1748908037127,19.957326,2612.8,2612.4,8.4299]
[1748908037323,18.808756,2612.8,2612.4,8.4299]
[1748908037528,0.76512,2612.7,2612.4,8.4299]
[1748908037827,18.808376,2612.8,2612.4,8.4299]
[1748908038535,0.201376,2612.8,2612.6,3.2078]
[1748908038723,18.802376,2612.8,2612.7,2.9076]
[1748908039234,20.510176,2612.8,2612.7,2.9076]
[1748908040626,39.14706226,2613.1,2612.7,2.9076]
[1748908040831,42.974,2613.1,2612.7,2.9076]
[1748908041029,0.7651,2612.7,2612.6,0.005738]
[1748908042430,0.76524,2612.3,2611.9,3.2078]
[1748908042644,0.76528,2612.1,2612.0,2.9449]
[1748908042832,19.36128,2612.1,2612.0,2.9449]
[1748908043032,0.76534,2611.9,2611.8,2.8777]
[1748908043328,0.76534,2611.9,2611.6,3.2078]
[1748908043329,0.7654,2611.7,2611.6,0.005738]
[1748908043531,0.76549,2611.4,2611.3,3.2078]
[1748908043835,0.76553,2611.3,2611.1,2.8777]
[1748908044038,4.92968969,2611.4,2611.1,2.8777]
[1748908044332,0.76553,2611.3,2611.1,2.8777]
[1748908044636,18.594,2611.2,2611.1,2.8777]
[1748908044827,19.35954,2611.2,2611.1,5.664]
[1748908045023,18.594,2611.2,2611.1,5.664]
[1748908045732,17.44614,2611.2,2611.1,5.664]
[1748908045927,16.6806,2611.2,2611.1,5.664]
[1748908046127,15.9152,2611.2,2611.1,5.664]
[1748908046933,16.68074,2611.2,2611.1,5.664]
[1748908048437,15.9152,2611.2,2611.1,5.664]
[1748908048631,5.69517969,2611.4,2611.1,5.664]
[1748908048840,4.386,2611.4,2611.2,2.9939]
[1748908049038,18.595,2611.3,2611.2,2.9939]
[1748908049238,0.76554,2611.2,2611.1,2.8777]
[1748908049934,17.44584,2611.3,2611.1,2.8777]
[1748908050134,16.67994,2611.3,2611.1,2.8777]
[1748908050335,17.44547,2611.3,2611.0,3.2078]
[1748908050730,0.76555,2611.2,2611.0,6.2017]
[1748908052138,18.37714,2611.3,2611.0,6.2017]
[1748908052440,0.76555,2611.2,2611.0,6.2017]
[1748908052842,3.61233,2611.3,2611.0,6.2017]
[1748908053033,3.61233,2611.3,2611.0,3.2078]
[1748908053034,18.593,2611.2,2611.0,3.2078]
[1748908053230,3.51107,2611.1,2611.0,3.2078]
[1748908053437,0.7656,2611.0,2610.9,0.005738]
[1748908053637,3.2078,2612.0,2610.9,0.005738]
[1748908053832,7.38672999,2612.0,2611.3,3.2078]
[1748908054142,3.2078,2612.0,2611.5,0.76545]
[1748908054339,3.2078,2612.0,2611.6,3.64262]
[1748908054340,7.5958,2612.0,2611.6,3.64262]
[1748908054531,4.388,2612.0,2611.8,3.2078]
[1748908054834,0.005738,2612.1,2611.9,2.8772]
[1748908055245,0.005738,2612.1,2612.0,3.0032]
[1748908056439,0.76525,2612.2,2612.0,3.0032]
[1748908056641,0.76525,2612.2,2612.1,2.8772]
[1748908056943,21.866168,2612.3,2612.1,6.085]
[1748908057336,21.866168,2612.3,2612.2,2.8772]
[1748908057840,19.952068,2612.3,2612.2,2.8772]
[1748908058238,22.808038,2612.3,2612.2,2.8772]
[1748908060943,22.808038,2612.3,2612.1,6.1044]
[1748908060944,23.573268,2612.3,2612.1,6.1044]
[1748908061145,22.808038,2612.3,2611.8,2.8773]
[1748908061348,3.0078,2612.2,2611.6,3.2078]
[1748908061648,3.77305,2612.2,2611.6,3.2078]
[1748908061846,22.97,2612.1,2611.7,6.0851]
[1748908062147,23.73529,2612.1,2611.8,2.8773]
[1748908062348,22.97,2612.1,2611.8,2.8773]
[1748908062649,22.97,2612.1,2611.9,2.888]
[1748908062850,22.2044,2612.1,2612.0,2.8773]
[1748908063147,20.2893,2612.1,2612.0,6.0851]
[1748908063347,20.2893,2612.1,2612.0,2.8773]
[1748908064651,21.05458,2612.1,2612.0,2.8773]
[1748908064854,21.05458,2612.1,2611.9,2.888]
[1748908065448,21.05458,2612.1,2611.9,5.6304]
[1748908065947,0.76531,2612.0,2611.9,5.6304]
[1748908067247,20.2893,2612.1,2611.9,5.6304]
[1748908067451,5.13631,2612.0,2611.9,5.6304]
[1748908067950,4.371,2612.0,2611.9,5.6304]
[1748908068753,3.79011,2612.4,2611.9,5.6304]
[1748908068950,3.79011,2612.4,2611.7,3.2078]
[1748908068951,22.948,2612.3,2611.7,3.2078]
[1748908069147,0.76531,2612.0,2611.8,2.8384]
[1748908069454,0.76525,2612.2,2611.8,2.8384]
[1748908069653,0.76528,2612.1,2611.9,5.8054]
[1748908069856,0.76532,2612.0,2611.7,3.2078]
[1748908070351,22.947,2612.0,2611.8,2.8558]
[1748908070740,22.1813,2612.0,2611.8,2.8558]
[1748908071655,22.94663,2612.0,2611.8,2.8558]
[1748908072156,23.71033,2612.0,2611.8,2.8558]
[1748908072655,0.76534,2611.9,2611.8,2.8558]
[1748908073044,22.945,2612.0,2611.7,3.2078]
[1748908073249,0.76544,2611.6,2611.2,3.2078]
[1748908073450,0.76541,2611.7,2611.5,3.2078]
[1748908073645,3.04101062,2612.1,2611.6,8.2946]
[1748908073848,5.13633,2612.0,2611.7,2.7638]
[1748908074054,1.7549,2612.0,2611.8,3.2078]
[1748908074252,2.52021,2612.0,2611.9,2.7638]
[1748908074552,1.7549,2612.0,2611.9,2.7638]
[1748908074756,0.76529,2612.1,2611.9,2.7638]
[1748908075053,0.76534,2611.9,2611.6,5.5308]
[1748908075261,22.943,2612.0,2611.7,2.7638]
[1748908075558,0.7654,2611.7,2611.6,5.5308]
[1748908075763,0.76538,2611.8,2611.6,8.535]
[1748908075949,3.04101062,2612.1,2611.6,8.535]
[1748908076151,4.371,2612.0,2611.8,3.2078]
[1748908076353,4.371,2612.0,2611.9,3.0042]
[1748908077158,3.6052,2612.0,2611.9,3.0042]
[1748908077559,4.37051,2612.0,2611.9,3.0042]
[1748908081061,4.36371,2612.0,2611.9,3.0042]
[1748908081557,4.35571,2612.0,2611.9,3.0042]
[1748908082553,4.34051,2612.0,2611.9,3.0042]
[1748908083160,0.76536,2611.9,2611.6,5.5308]
[1748908083356,0.7654,2611.7,2611.6,5.5308]
[1748908083857,0.76538,2611.8,2611.6,8.4256]
[1748908084056,3.80639062,2611.8,2611.6,8.4256]
[1748908084462,0.7654,2611.7,2611.6,8.4256]
[1748908084762,3.04071062,2611.8,2611.6,8.4256]
[1748908085162,0.7654,2611.7,2611.6,8.4256]
[1748908085456,0.7654,2611.7,2611.6,5.6709]
[1748908085650,0.7599,2611.7,2611.6,5.6709]
[1748908086262,5.85,2611.9,2611.6,5.6709]
[1748908086560,3.9888,2611.9,2611.6,5.6709]
[1748908086765,0.7654,2611.7,2611.6,5.6709]
[1748908086964,3.80126328,2612.1,2611.7,2.9888]
[1748908087262,0.76528,2612.1,2612.0,3.2078]
[1748908089257,19.32428,2612.1,2612.0,3.2078]
[1748908091861,19.32028,2612.1,2612.0,3.2078]
[1748908094367,17.40618,2612.1,2612.0,3.2078]
[1748908094563,3.05985159,2612.3,2612.0,3.2078]
[1748908094771,0.005738,2612.5,2612.1,3.1298]
[1748908094963,0.005738,2612.5,2612.4,3.2078]
[1748908095964,22.28027892,2612.8,2612.4,3.2078]
[1748908096165,22.28027892,2612.8,2612.5,3.1298]
[1748908096166,21.014258,2612.8,2612.5,3.1298]
[1748908096469,0.76513,2612.6,2612.5,3.1298]
[1748908096770,0.76512,2612.7,2612.5,3.1298]
[1748908097769,21.011258,2612.8,2612.5,3.1298]
[1748908097770,0.76513,2612.6,2612.5,3.1298]
[1748908098671,21.011258,2612.8,2612.3,0.005738]
[1748908098869,0.76519,2612.4,2612.3,0.005738]
[1748908099060,4.353,2612.4,2611.8,3.2078]
[1748908099265,3.05985159,2612.3,2611.8,3.2078]
[1748908099470,8.17806159,2612.4,2612.1,3.2078]
[1748908099668,8.17806159,2612.4,2612.2,2.8558]
[1748908099966,7.41285159,2612.4,2612.2,2.8558]
[1748908100172,3.05985159,2612.4,2612.2,2.8558]
[1748908100375,0.005738,2612.6,2612.3,2.8922]
[1748908100575,0.005738,2612.6,2612.5,3.2078]
[1748908100775,0.005738,2612.6,2612.5,3.97296]
[1748908100974,36.704038,2612.9,2612.5,8.2078]
[1748908101171,35.938538,2612.9,2612.5,3.2078]
[1748908101972,36.703598,2612.9,2612.5,3.2078]
[1748908102377,0.76509,2612.8,2612.5,3.2078]
[1748908103073,35.938538,2612.9,2612.5,3.2078]
[1748908103271,4.352,2613.0,2612.8,3.2078]
[1748908103466,5.11703,2613.0,2612.9,3.0418]
[1748908103772,0.76505,2612.9,2612.8,3.2078]
[1748908103978,5.11704,2613.0,2612.8,3.2078]
[1748908104378,0.76505,2612.9,2612.8,3.2078]
[1748908105379,5.11704,2613.0,2612.8,3.2078]
[1748908106075,4.352,2613.0,2612.8,3.2078]
[1748908106781,5.11703,2613.0,2612.8,3.2078]
[1748908107078,7.3081,2613.0,2612.8,3.2078]
[1748908108072,4.352,2613.0,2612.8,3.2078]
[1748908110085,5.11703,2613.0,2612.8,3.2078]
[1748908110677,5.11023,2613.0,2612.8,3.2078]
[1748908110979,0.76505,2612.9,2612.8,3.2078]
[1748908111574,8.17463,2613.0,2612.8,3.2078]
[1748908111878,8.17462,2613.0,2612.8,3.2078]
[1748908112081,7.4096,2613.0,2612.8,3.2078]
[1748908112473,0.76505,2612.9,2612.8,3.2078]
[1748908112675,0.74975,2612.9,2612.4,6.0417]
[1748908112977,0.76508,2612.8,2612.7,3.2078]
[1748908113277,5.52558,2613.0,2612.7,3.2078]
[1748908113479,0.76508,2612.8,2612.7,3.2078]
[1748908114772,0.76509,2612.8,2612.4,3.0418]
[1748908114980,0.76509,2612.8,2612.4,6.1542]
[1748908115178,0.76511,2612.7,2612.4,6.1542]
[1748908115380,4.352,2612.6,2612.4,6.1542]
[1748908116378,3.97285,2612.9,2612.4,6.1542]
[1748908116578,4.352,2612.8,2612.4,6.1542]
[1748908116776,5.11708,2612.8,2612.4,6.1542]
[1748908116978,3.5866,2612.8,2612.4,6.1542]
[1748908117487,1.6731,2612.8,2612.6,3.2078]
[1748908117685,1.6731,2612.8,2612.7,3.1792]
[1748908117985,1.6731,2612.8,2612.7,3.9443]
[1748908118179,1.6731,2612.8,2612.7,3.1792]
[1748908118986,0.52452,2613.0,2612.7,3.1792]
[1748908119378,0.76505,2612.9,2612.8,3.1752]
[1748908119683,7.5588,2613.2,2612.6,3.2078]
[1748908119684,0.7651,2612.7,2612.6,3.2078]
[1748908119884,9.47123,2613.2,2612.3,2.8922]
[1748908119885,0.76515,2612.6,2612.4,3.1752]
[1748908120079,0.76515,2612.6,2612.4,6.335]
[1748908121176,0.76516,2612.5,2612.4,6.335]
[1748908121682,0.76519,2612.4,2612.0,0.005738]
[1748908121889,2.8673,2612.7,2612.0,8.961938]
[1748908122089,0.76515,2612.6,2612.0,9.727248]
[1748908122283,2.86705,2612.7,2612.0,9.727248]
[1748908122484,0.76515,2612.6,2612.0,9.727248]
[1748908122683,0.59065,2612.6,2612.0,9.727248]
[1748908123506,0.76517,2612.5,2612.0,9.727248]
[1748908123798,0.76516,2612.6,2612.1,0.76528]
[1748908123998,0.76516,2612.6,2612.2,3.1346]
[1748908124401,1.89298,2612.7,2612.2,3.1346]
[1748908124893,0.76522,2612.3,2612.2,3.1346]
[1748908125097,0.76521,2612.4,2612.2,3.1346]
[1748908125299,6.01966159,2612.6,2612.2,3.1346]
[1748908125499,0.7652,2612.4,2612.0,5.827338]
[1748908125698,0.7652,2612.4,2612.0,8.953538]
[1748908126504,5.1162,2612.4,2612.0,8.953538]
[1748908126703,4.351,2612.4,2612.0,8.953538]
[1748908126901,21.7208,2612.3,2612.0,0.005738]
[1748908127101,0.76536,2611.9,2611.3,3.97331]